bitfinex/quotes_BTCUSD_20250222
["timestamp","ask_amount","ask_price","bid_price","bid_amount"]
[1740202520236,0.00174388,96644.0,96643.0,0.30754944]
[1740202520437,0.00174388,96644.0,96643.0,0.27527475]
[1740202520661,0.00174388,96644.0,96643.0,0.27942075]
[1740202522199,0.00174388,96644.0,96643.0,0.28642075]
[1740202523290,0.00174388,96644.0,96643.0,0.28942075]
[1740202523498,0.00174388,96644.0,96643.0,0.28642075]
[1740202523802,0.00174388,96644.0,96643.0,0.29142075]
[1740202526163,0.00174388,96644.0,96643.0,0.32025611]
[1740202532601,0.00174388,96644.0,96643.0,0.32220632]
[1740202547136,0.00174388,96644.0,96643.0,0.15934575]
[1740202547337,0.00174388,96644.0,96643.0,0.1480589]
[1740202547534,0.00174388,96644.0,96643.0,0.1406589]
[1740202548047,0.00174388,96644.0,96643.0,0.31040975]
[1740202548220,0.00174388,96644.0,96643.0,0.31780975]
[1740202548820,0.00174388,96644.0,96643.0,0.31080975]
[1740202549191,0.00174388,96644.0,96643.0,0.30580975]
[1740202549404,0.00174388,96644.0,96643.0,0.31180975]
[1740202550238,0.00174388,96644.0,96643.0,0.31880975]
[1740202551268,0.00174388,96644.0,96643.0,0.31180975]
[1740202551479,0.00174388,96644.0,96643.0,0.31140975]
[1740202551778,0.00174388,96644.0,96643.0,0.31880975]
[1740202557084,0.00174388,96644.0,96643.0,0.31140975]
[1740202557288,0.00174388,96644.0,96643.0,0.31880975]
[1740202558594,0.00174388,96644.0,96643.0,0.3042689]
[1740202580498,0.00174388,96644.0,96643.0,0.1490589]
[1740202580693,0.00174388,96644.0,96643.0,0.3042689]
[1740202587578,0.00174388,96644.0,96643.0,0.33658705]
[1740202599582,0.00174388,96644.0,96643.0,0.18137705]
[1740202600053,0.00174388,96644.0,96643.0,0.33658705]
[1740202604807,0.08084388,96644.0,96643.0,0.01782842]
[1740202605039,0.12884388,96644.0,96643.0,0.01782842]
[1740202605281,0.08084388,96644.0,96643.0,0.01495021]
[1740202605523,0.08084388,96644.0,96643.0,0.013]
[1740202605784,0.08084388,96644.0,96643.0,0.0046561]
[1740202606041,0.08084388,96644.0,96634.0,0.155223]
[1740202606262,0.08084388,96644.0,96643.0,0.007]
[1740202606500,0.08084388,96644.0,96643.0,0.013]
[1740202607481,0.08084388,96644.0,96643.0,0.006]
[1740202607733,0.08084388,96644.0,96633.0,0.155225]
[1740202607966,0.08084388,96644.0,96643.0,0.012]
[1740202608882,0.08084388,96644.0,96632.0,0.0017008]
[1740202609107,0.08084388,96644.0,96633.0,0.167226]
[1740202609341,0.08084388,96644.0,96633.0,0.0116561]
[1740202609573,0.08084388,96644.0,96643.0,0.005]
[1740202611380,0.08084388,96644.0,96643.0,0.012]
[1740202611581,0.08084388,96644.0,96643.0,0.007]
[1740202611793,0.08084388,96644.0,96633.0,0.206968]
[1740202612009,0.08084388,96644.0,96643.0,0.00966002]
[1740202612220,0.08084388,96644.0,96643.0,0.005]
[1740202612419,0.08084388,96644.0,96643.0,0.008]
[1740202612535,0.08084388,96644.0,96643.0,0.005]
[1740202612737,0.08084388,96644.0,96635.0,0.155221]
[1740202613052,0.08084388,96644.0,96636.0,0.00466326]
[1740202614092,0.08084388,96644.0,96635.0,0.155222]
[1740202614263,0.08084388,96644.0,96637.0,0.00466326]
[1740202614460,0.08084388,96644.0,96635.0,0.155222]
[1740202614664,0.08084388,96644.0,96636.0,0.00466326]
[1740202614866,0.08084388,96644.0,96633.0,0.005]
[1740202615068,0.08084388,96644.0,96643.0,0.003]
[1740202615487,0.08084388,96644.0,96643.0,0.00466326]
[1740202615717,0.08084388,96644.0,96635.0,0.004]
[1740202615896,0.08084388,96644.0,96643.0,0.00466341]
[1740202616102,0.08084388,96644.0,96635.0,0.161221]
[1740202616363,0.08084388,96644.0,96635.0,0.212964]
[1740202616483,0.08084388,96644.0,96636.0,0.15988329]
[1740202616687,0.08084388,96644.0,96643.0,0.002]
[1740202617088,0.08084388,96644.0,96637.0,0.15522]
[1740202617335,0.08084388,96644.0,96636.0,0.155221]
[1740202617536,0.08084388,96644.0,96643.0,0.004]
[1740202617953,0.08084388,96644.0,96637.0,0.155219]
[1740202618179,0.08084388,96644.0,96643.0,0.00466309]
[1740202618361,0.08084388,96644.0,96637.0,0.159219]
[1740202618564,0.08084388,96644.0,96643.0,0.00466309]
[1740202618763,0.08084388,96644.0,96638.0,0.155217]
[1740202618764,0.08084388,96644.0,96636.0,0.20696]
[1740202618966,0.08084388,96644.0,96643.0,0.01066309]
[1740202619175,0.08084388,96644.0,96643.0,0.004]
[1740202620202,0.08084388,96644.0,96643.0,0.006]
[1740202620553,0.08084388,96644.0,96643.0,0.002]
[1740202621359,0.08084388,96644.0,96643.0,0.00666301]
[1740202621583,0.00174388,96644.0,96643.0,0.15721]
[1740202621790,0.00174388,96644.0,96643.0,0.00666301]
[1740202622007,0.00174388,96644.0,96643.0,0.01066301]
[1740202623325,0.00174388,96644.0,96643.0,0.006]
[1740202623530,0.00174388,96644.0,96643.0,0.01066169]
[1740202637950,0.00174388,96644.0,96643.0,0.16587169]
[1740202640321,0.00174388,96644.0,96643.0,0.01066169]
[1740202640584,0.00174388,96644.0,96643.0,0.16587169]
[1740202645038,0.00174388,96644.0,96643.0,0.01066169]
[1740202645256,0.00174388,96644.0,96643.0,0.16587169]
[1740202684629,0.00174388,96644.0,96643.0,0.01066169]
[1740202687627,0.00174388,96644.0,96643.0,0.16587169]
[1740202687846,0.00174388,96644.0,96643.0,0.01066169]
[1740202689229,0.00174388,96644.0,96643.0,0.16587169]
[1740202689641,0.00174388,96644.0,96643.0,0.01066169]
[1740202690031,0.00174388,96644.0,96643.0,0.16587169]
[1740202690445,0.00174388,96644.0,96643.0,0.01066169]
[1740202691214,0.00174388,96644.0,96643.0,0.16587169]
[1740202691805,0.00174388,96644.0,96643.0,0.01066169]
[1740202695814,0.00174388,96644.0,96643.0,0.16587169]
[1740202696638,0.00174388,96644.0,96643.0,0.01066169]
[1740202696839,0.00174388,96644.0,96643.0,0.16587169]
[1740202699323,0.00174388,96644.0,96643.0,0.01066169]
[1740202700830,0.00174388,96644.0,96643.0,0.16587169]
[1740202712233,0.00174388,96644.0,96643.0,0.34811738]
[1740202712480,0.00174388,96644.0,96643.0,0.36265823]
[1740202733447,0.00174388,96644.0,96643.0,0.28305823]
[1740202735145,0.00174388,96644.0,96643.0,0.36365823]
[1740202738894,0.00174388,96644.0,96643.0,0.34911669]
[1740202740050,0.00174388,96644.0,96643.0,0.344455]
[1740202740273,0.00174388,96644.0,96643.0,0.34880503]
[1740202748711,0.00174388,96644.0,96643.0,0.26820503]
[1740202749548,0.00174388,96644.0,96643.0,0.27560503]
[1740202751896,0.00174388,96644.0,96643.0,0.26820503]
[1740202752135,0.00174388,96644.0,96643.0,0.27560503]
[1740202752512,0.00174388,96644.0,96643.0,0.27730583]
[1740202757122,0.00174388,96644.0,96643.0,0.26990583]
[1740202757323,0.00174388,96644.0,96643.0,0.27730583]
[1740202761199,0.00174388,96644.0,96643.0,0.26990583]
[1740202761431,0.00174388,96644.0,96643.0,0.27730583]
[1740202782183,0.00174388,96644.0,96643.0,0.28054433]
[1740202786161,0.00174388,96644.0,96643.0,0.27730583]
[1740202804993,0.00174388,96644.0,96643.0,0.36834668]
[1740202810720,0.00174388,96644.0,96643.0,0.29184668]
[1740202815734,0.00174388,96644.0,96643.0,0.29959995]
[1740202818457,0.00174388,96644.0,96643.0,0.33385185]
[1740202819332,0.00174388,96644.0,96643.0,0.32609858]
[1740202819956,0.00174388,96644.0,96643.0,0.3228603]
[1740202821693,0.00174388,96644.0,96643.0,0.29184668]
[1740202822491,0.00174388,96644.0,96643.0,0.26990583]
[1740202822701,0.00174388,96644.0,96643.0,0.27730583]
[1740202823358,0.00174388,96644.0,96643.0,0.26990583]
[1740202823536,0.00174388,96644.0,96643.0,0.27730583]
[1740202834468,0.00174388,96644.0,96643.0,0.26990583]
[1740202834703,0.00174388,96644.0,96643.0,0.27730583]
[1740202844572,0.00174388,96644.0,96643.0,0.26990583]
[1740202844783,0.00174388,96644.0,96643.0,0.27730583]
[1740202856775,0.00174388,96644.0,96643.0,0.12209583]
[1740202857621,0.00174388,96644.0,96643.0,0.27730583]
[1740202863318,0.00174388,96644.0,96643.0,0.26990583]
[1740202863544,0.00174388,96644.0,96643.0,0.27730583]
[1740202867325,0.00174388,96644.0,96643.0,0.11469583]
[1740202867754,0.00174388,96644.0,96643.0,0.01205014]
[1740202875830,0.00174388,96644.0,96643.0,0.16726014]
[1740202886685,0.00174388,96644.0,96643.0,0.26990583]
[1740202897598,0.00174388,96644.0,96643.0,0.26390652]
[1740202897810,0.00174388,96644.0,96643.0,0.27090652]
[1740202899071,0.00174388,96644.0,96643.0,0.27790652]
[1740202900946,0.00174388,96644.0,96643.0,0.29244737]
[1740202907969,0.00174388,96644.0,96643.0,0.3001888]
[1740202908977,0.00174388,96644.0,96643.0,0.29568561]
[1740202909391,0.00174388,96644.0,96643.0,0.28868561]
[1740202909606,0.00174388,96644.0,96643.0,0.29568561]
[1740202910832,0.00174388,96644.0,96643.0,0.28868561]
[1740202911007,0.00174388,96644.0,96643.0,0.29244737]
[1740202915922,0.00174388,96644.0,96643.0,0.28544737]
[1740202916096,0.00174388,96644.0,96643.0,0.29244737]
[1740202916680,0.00174388,96644.0,96643.0,0.27844737]
[1740202917098,0.00174388,96644.0,96643.0,0.28544737]
[1740202917302,0.00174388,96644.0,96643.0,0.27844737]
[1740202917504,0.00174388,96644.0,96643.0,0.28544737]
[1740202917948,0.00174388,96644.0,96643.0,0.29244737]
[1740202920286,0.00174388,96644.0,96643.0,0.29342942]
[1740202925460,0.00174388,96644.0,96643.0,0.29666751]
[1740202926133,0.00174388,96644.0,96643.0,0.30426751]
[1740202926344,0.00174388,96644.0,96643.0,0.29726751]
[1740202926548,0.00174388,96644.0,96643.0,0.30430751]
[1740202927228,0.00174388,96644.0,96643.0,0.29730751]
[1740202927447,0.00174388,96644.0,96643.0,0.30430751]
[1740202927878,0.00174388,96644.0,96643.0,0.29730751]
[1740202928313,0.00174388,96644.0,96643.0,0.30430751]
[1740202928807,0.00174388,96644.0,96643.0,0.29734751]
[1740202929244,0.00174388,96644.0,96643.0,0.30434751]
[1740202931215,0.00174388,96644.0,96643.0,0.30110942]
[1740202932686,8.8e-07,96644.0,96643.0,0.77250942]
[1740202932909,8.8e-07,96644.0,96643.0,0.79935018]
[1740202933359,8.8e-07,96644.0,96643.0,0.77250942]
[1740202933822,8.8e-07,96644.0,96643.0,0.79775202]
[1740202934252,0.00079061,96663.0,96662.0,0.155179]
[1740202934449,0.00079061,96663.0,96662.0,0.27236554]
[1740202934757,0.0012215,96663.0,96662.0,0.27767719]
[1740202936433,0.0012215,96663.0,96662.0,0.29239719]
[1740202936871,0.0012215,96663.0,96662.0,0.29943719]
[1740202937310,0.0012215,96663.0,96662.0,0.28800969]
[1740202937529,0.0012215,96663.0,96662.0,0.29500969]
[1740202937713,0.0012215,96663.0,96662.0,0.28100969]
[1740202938143,0.0012215,96663.0,96662.0,0.29500969]
[1740202938603,0.0012215,96663.0,96662.0,0.28800969]
[1740202938850,0.0012215,96663.0,96662.0,0.29500969]
[1740202939034,0.0020719,96663.0,96662.0,0.29500969]
[1740202941069,0.0020719,96663.0,96662.0,0.28489634]
[1740202956464,0.0020719,96663.0,96662.0,0.28485634]
[1740202963976,0.0020719,96663.0,96662.0,0.28809427]
[1740202965806,0.0020719,96663.0,96662.0,0.28485634]
[1740202988226,0.0020719,96663.0,96662.0,0.28509703]
[1740202998012,0.0020719,96663.0,96662.0,0.28531772]
[1740203010018,0.0020719,96663.0,96662.0,0.13013872]
[1740203010230,0.0020719,96663.0,96662.0,0.28531772]
[1740203033295,0.0020719,96663.0,96662.0,0.28519772]
[1740203033698,0.0020719,96663.0,96662.0,0.27759772]
[1740203033879,0.0020719,96663.0,96662.0,0.28519772]
[1740203040880,0.0020719,96663.0,96662.0,0.27759772]
[1740203041114,0.0020719,96663.0,96662.0,0.28519772]
[1740203041398,0.0020719,96663.0,96662.0,0.27759772]
[1740203041605,0.0020719,96663.0,96662.0,0.28519772]
[1740203064443,0.0020719,96663.0,96662.0,0.27759772]
[1740203064624,0.0020719,96663.0,96662.0,0.28515772]
[1740203076452,0.0020719,96663.0,96662.0,0.27759772]
[1740203076694,0.0020719,96663.0,96662.0,0.28515772]
[1740203097811,0.0020719,96663.0,96662.0,0.29969857]
[1740203100081,1e-07,96665.0,96664.0,0.155176]
[1740203100281,4.316e-05,96665.0,96664.0,0.42852198]
[1740203100500,4.316e-05,96665.0,96664.0,0.42728094]
[1740203101492,4.316e-05,96665.0,96664.0,0.43428094]
[1740203101796,4.316e-05,96665.0,96664.0,0.42728094]
[1740203102196,4.316e-05,96665.0,96664.0,0.43428094]
[1740203102371,4.316e-05,96665.0,96664.0,0.44128094]
[1740203102776,4.316e-05,96665.0,96664.0,0.43428094]
[1740203103177,4.316e-05,96665.0,96664.0,0.44128094]
[1740203103605,4.316e-05,96665.0,96664.0,0.44902183]
[1740203105660,4.316e-05,96665.0,96664.0,0.77042183]
[1740203106681,4.316e-05,96665.0,96664.0,0.77802183]
[1740203106884,4.316e-05,96665.0,96664.0,0.75588098]
[1740203107096,4.316e-05,96665.0,96664.0,0.76348098]
[1740203108482,4.316e-05,96665.0,96664.0,0.79887374]
[1740203109289,4.316e-05,96665.0,96664.0,0.79891374]
[1740203111413,4.316e-05,96665.0,96664.0,0.79127374]
[1740203111612,4.316e-05,96665.0,96664.0,0.79891374]
[1740203111891,4.316e-05,96665.0,96664.0,0.79127374]
[1740203112117,4.316e-05,96665.0,96664.0,0.02665929]
[1740203113113,4.316e-05,96665.0,96664.0,0.0087008]
[1740203113347,4.316e-05,96665.0,96664.0,0.0157008]
[1740203113767,0.19159782,96665.0,96664.0,0.0157008]
[1740203114299,0.19159782,96665.0,96664.0,0.0087008]
[1740203114690,0.19159782,96665.0,96664.0,0.0147008]
[1740203114888,0.15521816,96665.0,96664.0,0.0017008]
[1740203115324,0.15621816,96665.0,96664.0,0.0017008]
[1740203117355,0.15521816,96665.0,96664.0,0.0017008]
[1740203117677,0.15721816,96665.0,96664.0,0.0017008]
[1740203118289,0.15921816,96665.0,96664.0,0.0017008]
[1740203118709,0.30921816,96665.0,96664.0,0.0017008]
[1740203127665,0.15404316,96665.0,96664.0,0.0017008]
[1740203141470,0.15204316,96665.0,96664.0,0.0017008]
[1740203141910,0.15404316,96665.0,96664.0,0.0017008]
[1740203142872,0.15204316,96665.0,96664.0,0.0017008]
[1740203143055,0.15404316,96665.0,96664.0,0.0017008]
[1740203149390,0.17111504,96665.0,96664.0,0.0017008]
[1740203150186,0.15404316,96665.0,96664.0,0.0017008]
[1740203150366,0.15204316,96665.0,96664.0,0.0017008]
[1740203150567,0.15004316,96665.0,96664.0,0.0017008]
[1740203150771,0.15204316,96665.0,96664.0,0.0017008]
[1740203151019,0.15404316,96665.0,96664.0,0.0017008]
[1740203151974,0.17361752,96665.0,96664.0,0.0017008]
[1740203156230,0.15404316,96665.0,96664.0,0.0017008]
[1740203157152,0.15204316,96665.0,96664.0,0.0017008]
[1740203157359,0.15404316,96665.0,96664.0,0.0017008]
[1740203158181,0.15204316,96665.0,96664.0,0.0017008]
[1740203158805,0.15404316,96665.0,96664.0,0.0017008]
[1740203159004,0.15204316,96665.0,96664.0,0.0017008]
[1740203159480,0.15404316,96665.0,96664.0,0.0017008]
[1740203159816,0.15004316,96665.0,96664.0,0.0017008]
[1740203160230,0.15404316,96665.0,96664.0,0.0017008]
[1740203160612,0.15204316,96665.0,96664.0,0.0017008]
[1740203160858,0.15404316,96665.0,96664.0,0.0017008]
[1740203161685,0.15604316,96665.0,96664.0,0.0017008]
[1740203162726,0.20863721,96665.0,96664.0,0.0017008]
[1740203162955,0.15604316,96665.0,96664.0,0.0017008]
[1740203171645,0.15404316,96665.0,96664.0,0.0017008]
[1740203171849,0.15004316,96665.0,96664.0,0.0017008]
[1740203172026,0.15204316,96665.0,96664.0,0.0017008]
[1740203172231,0.15404316,96665.0,96664.0,0.0017008]
[1740203172440,0.15204316,96665.0,96664.0,0.0017008]
[1740203172639,0.15004316,96665.0,96664.0,0.0017008]
[1740203172882,0.15204316,96665.0,96664.0,0.0017008]
[1740203173500,0.15604316,96665.0,96664.0,0.0017008]
[1740203173762,0.15204316,96665.0,96664.0,0.0017008]
[1740203174893,0.15004316,96665.0,96664.0,0.0017008]
[1740203175103,0.15404316,96665.0,96664.0,0.0017008]
[1740203177537,0.15204316,96665.0,96664.0,0.0017008]
[1740203177734,0.15004316,96665.0,96664.0,0.0017008]
[1740203178573,0.15204316,96665.0,96664.0,0.0017008]
[1740203178904,0.15404316,96665.0,96664.0,0.0017008]
[1740203179110,0.15204316,96665.0,96664.0,0.0017008]
[1740203179524,0.15404316,96665.0,96664.0,0.0017008]
[1740203179730,0.15204316,96665.0,96664.0,0.0017008]
[1740203179933,0.15404316,96665.0,96664.0,0.0017008]
[1740203180797,0.15004316,96665.0,96664.0,0.0017008]
[1740203181211,0.15204316,96665.0,96664.0,0.0017008]
[1740203181834,0.15004316,96665.0,96664.0,0.0017008]
[1740203182056,0.15204316,96665.0,96664.0,0.0017008]
[1740203182231,0.15404316,96665.0,96664.0,0.0017008]
[1740203182454,0.15204316,96665.0,96664.0,0.0017008]
[1740203184067,0.15304316,96665.0,96664.0,0.0017008]
[1740203186086,0.17981049,96665.0,96664.0,0.0017008]
[1740203186572,0.30245618,96665.0,96664.0,0.0017008]
[1740203186806,0.64295618,96665.0,96664.0,0.0017008]
[1740203187756,0.62295618,96665.0,96664.0,0.0017008]
[1740203188015,0.64295618,96665.0,96664.0,0.0017008]
[1740203188945,0.64095618,96665.0,96664.0,0.0017008]
[1740203189382,0.64295618,96665.0,96664.0,0.0017008]
[1740203189594,0.65916233,96665.0,96664.0,0.0017008]
[1740203190030,0.65816233,96665.0,96664.0,0.0017008]
[1740203190216,0.65916233,96665.0,96664.0,0.0017008]
[1740203190825,0.63916233,96665.0,96664.0,0.0017008]
[1740203191036,0.65916233,96665.0,96664.0,0.0017008]
[1740203192872,0.65916233,96665.0,96662.0,0.00046138]
[1740203192873,0.04,96663.0,96662.0,0.00046138]
[1740203193080,0.3759014,96663.0,96662.0,0.00046138]
[1740203194662,0.3789014,96663.0,96662.0,0.00046138]
[1740203195360,0.3819014,96663.0,96662.0,0.00046138]
[1740203196821,0.3819014,96663.0,96662.0,0.00036939]
[1740203197252,0.46143122,96663.0,96662.0,0.00036939]
[1740203197651,0.78193122,96663.0,96662.0,0.00036939]
[1740203198798,0.78193122,96663.0,96662.0,0.00027737]
[1740203199862,0.93710922,96663.0,96662.0,0.00027737]
[1740203200099,0.95331866,96663.0,96662.0,0.00027737]
[1740203206176,0.96410977,96663.0,96662.0,0.00027737]
[1740203207552,0.94790033,96663.0,96662.0,0.00197817]
[1740203209740,0.86464462,96663.0,96662.0,0.00197817]
[1740203210337,0.88085343,96663.0,96662.0,0.00197817]
[1740203216315,0.78132361,96663.0,96662.0,0.00197817]
[1740203216584,0.7705325,96663.0,96662.0,0.00197817]
[1740203216865,0.75432369,96663.0,96662.0,0.00197817]
[1740203217114,0.73432369,96663.0,96662.0,0.00197817]
[1740203217373,0.75432369,96663.0,96662.0,0.00197817]
[1740203217625,0.85696938,96663.0,96662.0,0.00197817]
[1740203218046,0.83696938,96663.0,96662.0,0.00197817]
[1740203219573,0.4765,96663.0,96662.0,0.00197817]
[1740203219778,0.156,96663.0,96662.0,0.00197817]
[1740203219984,0.006,96663.0,96662.0,0.00197817]
[1740203220588,0.0068504,96663.0,96662.0,0.00197817]
[1740203224165,0.0068504,96663.0,96662.0,0.00608032]
[1740203224375,0.0038504,96663.0,96662.0,0.00197817]
[1740203224578,0.0038504,96663.0,96662.0,0.00608032]
[1740203224783,0.0008504,96663.0,96662.0,0.00197817]
[1740203224995,0.0008504,96663.0,96662.0,0.00608032]
[1740203225209,0.0018504,96663.0,96662.0,0.00197817]
[1740203225433,0.0018504,96663.0,96662.0,0.16125932]
[1740203225638,0.0018504,96663.0,96662.0,0.15715717]
[1740203225886,0.0018504,96663.0,96662.0,0.16125932]
[1740203227632,0.0018504,96663.0,96662.0,0.26514632]
[1740203227844,0.0008504,96663.0,96662.0,0.26390501]
[1740203228896,0.0008504,96663.0,96662.0,0.26790501]
[1740203229298,0.0008504,96663.0,96662.0,0.26590501]
[1740203229708,0.0008504,96663.0,96662.0,0.26890501]
[1740203231639,0.0008504,96663.0,96662.0,0.26790501]
[1740203231842,0.0008504,96663.0,96662.0,0.26390501]
[1740203232043,0.0008504,96663.0,96662.0,0.26890501]
[1740203232261,0.0018504,96663.0,96662.0,0.27590501]
[1740203232662,0.0008504,96663.0,96662.0,0.26890501]
[1740203233078,0.0018504,96663.0,96662.0,0.27590501]
[1740203252556,0.0018504,96663.0,96662.0,0.29044586]
[1740203259554,0.0018504,96663.0,96662.0,0.29820395]
[1740203261255,0.0018504,96663.0,96662.0,0.29044586]
[1740203262011,0.0018504,96663.0,96662.0,0.12072601]
[1740203262403,0.0018504,96663.0,96662.0,0.01808032]
[1740203262796,0.0018504,96663.0,96662.0,0.01397817]
[1740203263568,0.0018504,96663.0,96662.0,0.01805608]
[1740203263705,0.0018504,96663.0,96662.0,0.01397817]
[1740203264417,0.0018504,96663.0,96662.0,0.01805751]
[1740203264565,0.0018504,96663.0,96662.0,0.01397817]
[1740203264915,0.0018504,96663.0,96662.0,0.01805748]
[1740203265339,0.0018504,96663.0,96662.0,0.01397817]
[1740203269530,0.04341796,96663.0,96662.0,0.01397817]
[1740203269739,0.0018504,96663.0,96662.0,0.01397817]
[1740203269940,0.0018504,96663.0,96662.0,0.01806219]
[1740203270156,0.0018504,96663.0,96662.0,0.01397817]
[1740203272992,0.1570284,96663.0,96662.0,0.01397817]
[1740203273498,0.05893686,96663.0,96662.0,0.01397817]
[1740203273702,0.0018504,96663.0,96662.0,0.01397817]
[1740203274255,0.1570284,96663.0,96662.0,0.01397817]
[1740203276723,0.1570284,96663.0,96662.0,0.00897817]
[1740203277040,0.1570284,96663.0,96662.0,0.00997817]
[1740203277255,0.1570284,96663.0,96662.0,0.00897817]
[1740203277454,0.22444093,96663.0,96662.0,0.00997817]
[1740203277852,0.22344093,96663.0,96662.0,0.00297817]
[1740203278291,0.22344093,96663.0,96662.0,0.00497817]
[1740203278830,0.22344093,96663.0,96662.0,0.00297817]
[1740203279077,0.22344093,96663.0,96662.0,0.00497817]
[1740203285919,0.32608662,96663.0,96662.0,0.00497817]
[1740203287070,0.64658662,96663.0,96662.0,0.00497817]
[1740203295264,0.79658662,96663.0,96662.0,0.00497817]
[1740203295902,0.6265284,96663.0,96662.0,0.00497817]
[1740203297143,0.4713504,96663.0,96662.0,0.00497817]
[1740203297398,0.6265284,96663.0,96662.0,0.00497817]
[1740203297838,0.4713504,96663.0,96662.0,0.00497817]
[1740203298570,0.6265284,96663.0,96662.0,0.00497817]
[1740203298779,0.3060284,96663.0,96662.0,0.00497817]
[1740203299665,0.32313985,96663.0,96662.0,0.00497817]
[1740203305710,0.3060284,96663.0,96662.0,0.00497817]
[1740203320998,0.1508504,96663.0,96662.0,0.00497817]
[1740203321405,0.1508504,96663.0,96662.0,0.00907287]
[1740203321816,0.1508504,96663.0,96662.0,0.00497817]
[1740203322874,0.1508504,96663.0,96662.0,0.00907287]
[1740203323489,0.1508504,96663.0,96662.0,0.00497817]
[1740203333354,0.3060284,96663.0,96662.0,0.00497817]
[1740203337958,0.44867409,96663.0,96662.0,0.00497817]
[1740203338158,0.76917409,96663.0,96662.0,0.00497817]
[1740203339120,0.76917409,96663.0,96662.0,0.00197817]
[1740203339325,0.77017409,96663.0,96662.0,0.00197817]
[1740203339587,0.87281978,96663.0,96662.0,0.00197817]
[1740203341005,0.88902774,96663.0,96662.0,0.00197817]
[1740203346548,0.87281978,96663.0,96662.0,0.00197817]
[1740203349482,0.88902636,96663.0,96662.0,0.00197817]
[1740203349693,0.9052348,96663.0,96662.0,0.00197817]
[1740203352519,0.9042348,96663.0,96662.0,0.00197817]
[1740203352753,0.9072348,96663.0,96662.0,0.00197817]
[1740203352953,0.9112348,96663.0,96662.0,0.00197817]
[1740203355542,0.9112348,96663.0,96649.0,2e-07]
[1740203355543,0.345199,96650.0,96649.0,2e-07]
[1740203355748,0.325226,96633.0,96629.0,0.0017006]
[1740203355950,0.44787169,96633.0,96629.0,0.0017006]
[1740203357093,0.44787169,96633.0,96632.0,0.00213169]
[1740203357293,0.55051738,96633.0,96632.0,0.00213169]
[1740203358584,0.55551738,96633.0,96632.0,0.00213169]
[1740203358983,0.57172969,96633.0,96632.0,0.00213169]
[1740203359304,0.57772969,96633.0,96632.0,0.00213169]
[1740203359670,0.58823452,96633.0,96632.0,0.00213169]
[1740203359820,0.58823452,96633.0,96632.0,0.00203968]
[1740203361185,0.90873452,96633.0,96632.0,0.00203968]
[1740203366659,0.89252221,96633.0,96632.0,0.00203968]
[1740203369731,0.90873437,96633.0,96632.0,0.00203968]
[1740203374255,0.99053437,96633.0,96632.0,0.00203968]
[1740203375094,0.90873437,96633.0,96632.0,0.00203968]
[1740203375961,0.95693437,96633.0,96632.0,0.00203968]
[1740203376291,1.03593437,96633.0,96632.0,0.00203968]
[1740203376501,1.01972221,96633.0,96632.0,0.00203968]
[1740203379744,0.98773429,96633.0,96632.0,0.00203968]
[1740203381346,0.90873429,96633.0,96632.0,0.00203968]
[1740203382028,0.66344291,96633.0,96632.0,0.00203968]
[1740203382851,0.68344291,96633.0,96632.0,0.00203968]
[1740203383470,0.76644291,96633.0,96632.0,0.00203968]
[1740203384307,0.68344291,96633.0,96632.0,0.00203968]
[1740203385103,0.76644291,96633.0,96632.0,0.00203968]
[1740203385346,0.8690886,96633.0,96632.0,0.00203968]
[1740203385754,0.9153886,96633.0,96632.0,0.00203968]
[1740203386638,0.85287652,96633.0,96632.0,0.00203968]
[1740203388935,0.76987652,96633.0,96632.0,0.00203968]
[1740203390593,0.74987652,96633.0,96632.0,0.00203968]
[1740203390796,0.76987652,96633.0,96632.0,0.00203968]
[1740203392221,0.77072722,96633.0,96632.0,0.00203968]
[1740203392631,0.85372722,96633.0,96632.0,0.00203968]
[1740203396969,0.77072722,96633.0,96632.0,0.00203968]
[1740203398174,0.85152722,96633.0,96632.0,0.00203968]
[1740203398717,0.77072722,96633.0,96632.0,0.00203968]
[1740203398920,0.75072722,96633.0,96632.0,0.00203968]
[1740203406567,0.87337291,96633.0,96632.0,0.00203968]
[1740203406768,1.00147291,96633.0,96632.0,0.00203968]
[1740203407780,0.98147291,96633.0,96632.0,0.00203968]
[1740203408026,0.93307291,96633.0,96632.0,0.00203968]
[1740203408405,0.72778153,96633.0,96632.0,0.00203968]
[1740203408611,0.64808153,96633.0,96632.0,0.00203968]
[1740203409655,0.66429287,96633.0,96632.0,0.00203968]
[1740203416571,0.64808153,96633.0,96632.0,0.00203968]
[1740203419579,0.66429341,96633.0,96632.0,0.00203968]
[1740203419902,0.7669391,96633.0,96632.0,0.00203968]
[1740203426490,0.75072722,96633.0,96632.0,0.00203968]
[1740203429729,0.76693861,96633.0,96632.0,0.00203968]
[1740203436509,0.75072722,96633.0,96632.0,0.00203968]
[1740203439690,0.76693905,96633.0,96632.0,0.00203968]
[1740203441887,0.76693905,96633.0,96632.0,0.00153968]
[1740203446666,0.75072722,96633.0,96632.0,0.00153968]
[1740203449717,0.7669391,96633.0,96632.0,0.00153968]
[1740203451458,0.50906741,96633.0,96632.0,0.00153968]
[1740203451663,0.49856258,96633.0,96632.0,0.00153968]
[1740203452196,0.49356258,96633.0,96632.0,0.00153968]
[1740203452400,0.48756258,96633.0,96632.0,0.00153968]
[1740203452606,0.49256258,96633.0,96632.0,0.00153968]
[1740203452815,0.64778858,96633.0,96632.0,0.00153968]
[1740203453252,0.32728858,96633.0,96632.0,0.00153968]
[1740203453644,0.32228858,96633.0,96632.0,0.00153968]
[1740203453839,0.32628858,96633.0,96632.0,0.00153968]
[1740203455150,0.32928858,96633.0,96632.0,0.00153968]
[1740203456714,0.3130767,96633.0,96632.0,0.00153968]
[1740203459293,0.3100767,96633.0,96632.0,0.00153968]
[1740203459688,0.3130767,96633.0,96632.0,0.00153968]
[1740203460075,0.3090767,96633.0,96632.0,0.00153968]
[1740203460382,0.3130767,96633.0,96632.0,0.00153968]
[1740203465974,0.1630767,96633.0,96632.0,0.00153968]
[1740203467624,0.22593387,96633.0,96632.0,0.00153968]
[1740203469955,0.31914716,96633.0,96632.0,0.00153968]
[1740203470802,0.31914716,96633.0,96632.0,0.00103968]
[1740203473366,0.42179285,96633.0,96632.0,0.00103968]
[1740203473519,0.42597956,96633.0,96632.0,0.00103968]
[1740203473927,0.57597956,96633.0,96632.0,0.00103968]
[1740203476008,0.57197956,96633.0,96632.0,0.00103968]
[1740203476212,0.54897956,96633.0,96632.0,0.00103968]
[1740203476386,0.57897956,96633.0,96632.0,0.00103968]
[1740203476595,0.57397956,96633.0,96632.0,0.00103968]
[1740203477027,0.89547956,96633.0,96632.0,0.00103968]
[1740203477233,0.90047956,96633.0,96632.0,0.00103968]
[1740203484603,0.92047956,96633.0,96632.0,0.00103968]
[1740203484798,0.90047956,96633.0,96632.0,0.00103968]
[1740203485047,0.92047956,96633.0,96632.0,0.00103968]
[1740203485251,0.93127577,96633.0,96632.0,0.00103968]
[1740203486194,0.91127577,96633.0,96632.0,0.00103968]
[1740203488545,0.91127577,96633.0,96632.0,0.00053968]
[1740203489571,0.92748794,96633.0,96632.0,0.00053968]
[1740203495408,0.78723077,96633.0,96632.0,0.00053968]
[1740203495611,0.75643456,96633.0,96632.0,3.968e-05]